bitfinex-derivatives/quotes_ETHF0:USTF0_20250923
["timestamp","ask_amount","ask_price","bid_price","bid_amount"]
[1758628424448,1.74613228,4193.1,4193.0,0.2208]
[1758628424651,1.28243,4193.0,4192.9,0.42894]
[1758628424854,1.84804228,4193.0,4192.9,0.66894]
[1758628425949,1.41911228,4193.0,4192.9,0.66894]
[1758628426150,1.84804228,4193.0,4192.9,0.42894]
[1758628426353,1.84804228,4193.0,4192.9,0.66894]
[1758628428350,1.16107,4192.7,4192.6,0.42897]
[1758628428549,1.72668228,4192.7,4192.6,0.66897]
[1758628429346,0.88031228,4192.7,4192.6,1.35737]
[1758628429740,0.56561228,4192.7,4192.6,1.35737]
[1758628429951,0.3147,4193.3,4193.2,0.85971]
[1758628430154,0.3147,4193.3,4193.2,1.35731]
[1758628430354,1.09150021,4193.3,4193.2,1.35731]
[1758628431352,1.09150021,4193.3,4193.2,1.09971]
[1758628431656,1.29750021,4193.3,4193.2,1.09971]
[1758628431859,1.29750021,4193.3,4193.2,0.66891]
[1758628432060,0.7321,4193.1,4193.0,0.42892]
[1758628432659,1.29750021,4193.1,4193.0,1.09972]
[1758628432851,1.72642021,4193.1,4193.0,0.6708]
[1758628433055,1.72642021,4193.1,4193.0,0.4485]
[1758628433654,1.29750021,4193.1,4193.0,0.63743]
[1758628433855,1.72642021,4193.1,4193.0,0.87743]
[1758628434357,1.72642021,4193.1,4193.0,0.66893]
[1758628434958,1.29750021,4193.1,4193.0,0.66893]
[1758628435460,1.29750021,4193.1,4193.0,0.87743]
[1758628435660,1.72642021,4193.1,4193.0,0.63743]
[1758628435860,1.72642021,4193.1,4193.0,0.66893]
[1758628437364,1.72642021,4193.1,4193.0,0.87743]
[1758628437762,1.29750021,4193.1,4193.0,0.87743]
[1758628438067,1.29750021,4193.1,4193.0,1.09973]
[1758628438262,1.72642021,4193.1,4193.0,0.66893]
[1758628438566,1.29750021,4193.1,4193.0,0.87743]
[1758628438768,1.72642021,4193.1,4193.0,0.87743]
[1758628439070,1.29750021,4193.1,4193.0,0.87743]
[1758628439668,1.72642021,4193.1,4193.0,0.87743]
[1758628439869,1.29750021,4193.1,4193.0,0.87743]
[1758628440069,1.29750021,4193.1,4193.0,1.09973]
[1758628441771,0.88010021,4193.1,4193.0,1.35733]
[1758628441972,0.56540021,4193.1,4193.0,1.35733]
[1758628442271,0.5261,4193.4,4193.3,1.1173]
[1758628442467,1.0919805,4193.4,4193.3,1.3573]
[1758628442969,0.8805805,4193.4,4193.3,1.3573]
[1758628443358,0.3147,4193.4,4193.3,1.3573]
[1758628443969,1.29785247,4193.4,4193.3,1.0997]
[1758628444471,1.29785247,4193.4,4193.3,1.3573]
[1758628445765,1.29785247,4193.4,4193.3,0.8597]
[1758628445971,1.29785247,4193.4,4193.3,1.0997]
[1758628447272,0.7321,4193.4,4193.3,1.0997]
[1758628447475,0.7321,4193.4,4193.3,1.3573]
[1758628448378,0.3147,4193.4,4193.3,1.3573]
[1758628449670,0.04151271,4193.9,4193.8,0.65115]
[1758628449875,1.33917964,4193.9,4193.8,1.09965]
[1758628452171,1.76801964,4193.9,4193.8,1.09965]
[1758628452375,1.29766693,4193.9,4193.8,1.09965]
[1758628452576,1.29766693,4193.9,4193.8,1.35725]
[1758628452776,1.29766693,4193.9,4193.8,1.09965]
[1758628457581,1.09166693,4193.9,4193.8,1.35715]
[1758628457780,0.3147,4193.9,4193.8,1.35715]
[1758628459380,0.7447,4194.4,4194.3,0.8461]
[1758628459580,1.30800841,4194.4,4194.3,0.6688]
[1758628460470,1.73679841,4194.4,4194.3,0.6688]
[1758628460675,1.30800841,4194.4,4194.3,0.6688]
[1758628463084,1.30800841,4194.4,4194.3,0.8736]
[1758628464186,0.7447,4194.4,4194.3,1.3436]
[1758628464480,0.5276,4194.4,4194.3,1.3436]
[1758628465284,0.5276,4194.4,4194.3,0.78916544]
[1758628465885,1.17349,4194.4,4194.3,0.54316544]
[1758628466083,1.73671779,4194.4,4194.3,0.4288]
[1758628466284,1.73671779,4194.4,4194.3,0.6688]
[1758628466490,1.30792779,4194.4,4194.3,0.6688]
[1758628466884,1.73671779,4194.4,4194.3,0.6688]
[1758628467091,1.30792779,4194.4,4194.3,0.6688]
[1758628467284,1.30792779,4194.4,4194.3,1.0861]
[1758628467491,0.5276,4194.4,4194.3,1.3436]
[1758628470191,0.1214,4195.0,4194.9,0.42874]
[1758628470395,0.5486,4195.0,4194.9,0.87354]
[1758628470692,1.11178628,4195.0,4194.9,0.87354]
[1758628470891,1.42928628,4195.0,4194.9,0.87354]
[1758628471092,1.42928628,4195.0,4194.9,1.08604]
[1758628471282,1.42928628,4195.0,4194.9,1.34354]
[1758628471696,0.8661,4195.0,4194.9,1.34354]
[1758628471896,1.4292858,4195.0,4194.9,1.34354]
[1758628472096,1.4292858,4195.0,4194.9,1.08604]
[1758628475202,1.8580158,4195.0,4194.9,1.08604]
[1758628475390,1.8580158,4195.0,4194.9,0.87354]
[1758628475993,1.8580158,4195.0,4194.9,0.66874]
[1758628477794,1.8580158,4195.0,4194.9,0.42874]
[1758628477989,1.17347,4194.6,4194.5,3.63658]
[1758628478194,1.3078858,4194.6,4194.5,4.29388]
[1758628478497,0.5276,4194.6,4194.5,4.55138]
[1758628479305,0.5276,4194.6,4194.5,4.29388]
[1758628479496,0.7447,4194.6,4194.5,4.29388]
[1758628482309,0.7447,4194.6,4194.5,4.05388]
[1758628482507,0.7447,4194.6,4194.5,4.29388]
[1758628482708,0.7447,4194.6,4194.5,4.05388]
[1758628482908,1.30803238,4194.6,4194.5,3.87658]
[1758628483110,1.30803238,4194.6,4194.5,4.08138]
[1758628483303,1.30803238,4194.6,4194.5,4.29388]
[1758628485305,1.09093238,4194.6,4194.5,4.55128]
[1758628485509,0.3175,4194.6,4194.5,4.55128]
[1758628489708,1.32073016,4194.6,4194.5,4.55128]
[1758628490418,1.32073016,4194.6,4194.5,4.29388]
[1758628490604,1.32073016,4194.6,4194.5,3.84138]
[1758628490915,1.32073016,4194.6,4194.5,3.87658]
[1758628491711,1.32073016,4194.6,4194.5,3.63658]
[1758628491913,1.74950016,4194.6,4194.5,3.87658]
[1758628493011,1.74950016,4194.6,4194.5,3.63658]
[1758628493215,1.74950016,4194.6,4194.5,3.87658]
[1758628493717,1.32073016,4194.6,4194.5,4.08178]
[1758628495420,1.32073016,4194.6,4194.5,4.30008]
[1758628496220,0.56413016,4194.6,4194.5,4.55748]
[1758628496722,0.89063016,4194.6,4194.5,4.55748]
[1758628497022,1.11033016,4194.6,4194.5,4.55748]
[1758628498319,1.11033016,4194.6,4194.5,4.31748]
[1758628498510,1.11033016,4194.6,4194.5,4.55748]
[1758628498912,0.89063016,4194.6,4194.5,4.55748]
[1758628500721,1.32973016,4194.6,4194.5,4.06008]
[1758628501026,0.89063016,4194.6,4194.5,4.55748]
[1758628501218,0.56413016,4194.6,4194.5,4.55748]
[1758628501519,3.24930093,4195.3,4195.0,0.42873]
[1758628501520,0.3265,4195.1,4195.0,0.42873]
[1758628501715,0.89137621,4195.1,4195.0,1.34963]
[1758628501919,0.3265,4195.4,4195.3,0.8522]
[1758628502125,0.3265,4195.6,4195.5,0.4235]
[1758628502326,0.89104032,4195.6,4195.5,1.34958]
[1758628502625,1.11074032,4195.6,4195.5,1.34958]
[1758628503818,0.42868,4195.5,4195.3,0.42869]
[1758628504024,0.89,4195.5,4195.4,1.09219]
[1758628504221,1.23496567,4195.5,4195.4,1.34959]
[1758628504624,0.56436567,4195.5,4195.4,1.34959]
[1758628505425,0.89086567,4195.5,4195.4,1.34959]
[1758628507728,1.32996567,4195.5,4195.4,1.10959]
[1758628507929,1.45436567,4195.5,4195.4,1.09219]
[1758628511729,1.45436567,4195.5,4195.4,0.87389]
[1758628516840,1.88304567,4195.5,4195.4,0.42869]
[1758628517038,1.88304567,4195.5,4195.4,0.66869]
[1758628518635,1.45436567,4195.5,4195.4,0.66869]
[1758628519142,1.45436567,4195.5,4195.4,0.88599]
[1758628520241,1.45436567,4195.5,4195.4,1.10889]
[1758628522642,1.88304567,4195.5,4195.4,1.10889]
[1758628523142,1.88304567,4195.5,4195.4,0.88599]
[1758628523844,1.88304567,4195.5,4195.4,0.66869]
[1758628524550,1.45436567,4195.5,4195.4,0.88599]
[1758628525540,1.45436567,4195.5,4195.4,0.64599]
[1758628525746,1.45436567,4195.5,4195.4,0.88599]
[1758628526549,1.45436567,4195.5,4195.4,0.64599]
[1758628526752,1.45436567,4195.5,4195.4,0.88599]
[1758628527251,1.88304567,4195.5,4195.4,0.66869]
[1758628527843,1.45436567,4195.5,4195.4,0.66869]
[1758628528351,1.45436567,4195.5,4195.4,0.88599]
[1758628529550,1.45436567,4195.5,4195.4,1.10889]
[1758628531053,1.88304567,4195.5,4195.4,1.10889]
[1758628531352,1.88304567,4195.5,4195.4,0.88599]
[1758628532053,1.88304567,4195.5,4195.4,0.66869]
[1758628534354,0.4221,4195.2,4195.1,0.42872]
[1758628534646,0.7408,4195.2,4195.1,0.66872]
[1758628534953,1.30516567,4195.2,4195.1,0.66872]
[1758628535352,1.30516567,4195.2,4195.1,0.88602]
[1758628540554,1.30516567,4195.2,4195.1,0.66872]
[1758628543349,1.73387567,4195.2,4195.1,0.42872]
[1758628543649,1.73387567,4195.2,4195.1,0.66872]
[1758628544955,1.30516567,4195.2,4195.1,0.66872]
[1758628548653,1.30516567,4195.2,4195.1,0.88892]
[1758628553264,1.30516567,4195.2,4195.1,0.66872]
[1758628553661,1.73387567,4195.2,4195.1,0.66872]
[1758628553860,1.73387567,4195.2,4195.1,0.42872]
[1758628554162,1.73387567,4195.2,4195.1,0.66872]
[1758628555660,0.42872,4195.1,4195.0,3.2078]
[1758628555857,0.7769,4194.6,4194.5,3.63658]
[1758628556057,1.34126567,4194.6,4194.5,4.30988]
[1758628556262,1.34126567,4194.6,4194.5,4.56728]
[1758628558462,0.7769,4194.6,4194.5,4.56728]
[1758628560062,0.3356,4194.6,4194.5,4.56728]
[1758628560257,0.3548,4195.0,4194.9,0.86204]
[1758628560565,1.13897235,4195.0,4194.9,1.10204]
[1758628560866,1.47457235,4195.0,4194.9,1.10204]
[1758628561461,1.47457235,4195.0,4194.9,1.35944]
[1758628561766,1.47457235,4195.0,4194.9,1.10204]
[1758628561967,1.90330235,4195.0,4194.9,0.4602]
[1758628562267,1.47457235,4195.0,4194.9,0.66874]
[1758628562860,1.47457235,4195.0,4194.9,0.42874]
[1758628563061,1.47457235,4195.0,4194.9,0.66874]
[1758628563667,1.90330235,4195.0,4194.9,0.66874]
[1758628565469,1.90330235,4195.0,4194.9,0.42874]
[1758628565669,1.90330235,4195.0,4194.9,0.66874]
[1758628566163,1.47457235,4195.0,4194.9,0.42874]
[1758628566364,1.47457235,4195.0,4194.9,0.66874]
[1758628567370,1.90330235,4195.0,4194.9,0.66874]
[1758628568373,1.47457235,4195.0,4194.9,0.66874]
[1758628570073,1.90330235,4195.0,4194.9,0.66874]
[1758628572274,1.90330235,4195.0,4194.9,0.42874]
[1758628572467,1.90330235,4195.0,4194.9,0.66874]
[1758628572876,0.4413,4194.8,4194.5,3.2078]
[1758628573174,0.7769,4194.6,4194.5,3.63658]
[1758628573367,1.34217235,4194.6,4194.5,3.87658]
[1758628574072,1.34217235,4194.6,4194.5,4.09678]
[1758628577377,1.34217235,4194.6,4194.5,4.29898]
[1758628578381,1.12327235,4194.6,4194.5,4.55628]
[1758628578681,0.90087235,4194.6,4194.5,4.55628]
[1758628579878,0.56527235,4194.6,4194.5,8.79468]
[1758628580083,0.3204,4195.3,4195.2,1.10461]
[1758628580384,0.6613,4195.5,4195.4,1.10459]
[1758628580682,0.6613,4195.5,4195.4,1.34459]
[1758628585975,3.744,4195.9,4195.8,0.84725]
[1758628586280,3.744,4195.9,4195.8,1.34455]
[1758628586781,3.9593,4195.9,4195.8,1.08725]
[1758628588079,4.38794,4195.9,4195.8,0.42865]
[1758628588280,3.9593,4195.9,4195.8,0.88505]
[1758628588583,3.9593,4195.9,4195.8,1.08725]
[1758628591381,4.38794,4195.9,4195.8,0.66865]
[1758628591985,4.95096113,4195.9,4195.8,0.66865]
[1758628594791,4.52232113,4195.9,4195.8,0.66865]
[1758628595093,4.95096113,4195.9,4195.8,0.66865]
[1758628595294,4.95096113,4195.9,4195.8,0.24]
[1758628596187,1.74316113,4195.9,4195.8,0.24]
[1758628596989,0.42866,4195.7,4195.2,0.2573]
[1758628597189,0.7515,4195.4,4195.3,0.88345]
[1758628597496,0.88342113,4195.4,4195.3,1.58295]
[1758628597694,0.88342113,4195.4,4195.3,1.3446]
[1758628597895,1.09922113,4195.4,4195.3,1.3446]
[1758628598193,1.31452113,4195.4,4195.3,1.0873]
[1758628600584,1.31452113,4195.4,4195.3,1.3446]
[1758628601892,1.31452113,4195.4,4195.3,1.0873]
[1758628604998,0.42871,4195.2,4194.4,0.2573]
[1758628605195,1.27942113,4195.1,4194.9,0.42874]
[1758628605496,1.27942113,4195.1,4195.0,3.87653]
[1758628605799,1.70814113,4195.1,4195.0,3.87653]
[1758628606605,1.70814113,4195.1,4195.0,3.4478]
[1758628606791,1.70814113,4195.1,4195.0,3.87653]
[1758628606992,1.70814113,4195.1,4195.0,3.63653]
[1758628607295,1.70814113,4195.1,4195.0,3.87653]
[1758628608092,1.70814113,4195.1,4195.0,0.24]
[1758628608297,1.70814113,4195.1,4194.4,3.2078]
[1758628608298,0.8492,4194.5,4194.4,3.2078]
[1758628608496,1.41222113,4194.5,4194.4,3.4478]
[1758628608696,1.41222113,4194.5,4194.4,3.6569]
[1758628608897,1.41222113,4194.5,4194.4,4.08569]
[1758628611887,1.84100113,4194.5,4194.4,3.63659]
[1758628612097,1.84100113,4194.5,4194.4,4.29829]
[1758628612798,1.41222113,4194.5,4194.4,4.29829]
[1758628613592,1.41222113,4194.5,4194.4,4.55559]
[1758628613898,0.86992113,4194.5,4194.4,4.55559]
[1758628614190,1.21012113,4194.5,4194.4,4.55559]
[1758628617404,0.56302113,4194.5,4194.4,4.55559]
[1758628617798,0.3069,4194.7,4194.6,0.85047]
[1758628618001,0.1328,4195.0,4194.8,0.4217]
[1758628618301,0.86851571,4194.9,4194.8,1.10775]
[1758628618492,0.86851571,4194.9,4194.8,1.34775]
[1758628619004,1.07591571,4194.9,4194.8,1.34775]
[1758628622403,1.27801571,4194.9,4194.8,1.09045]
[1758628622894,1.70675571,4194.9,4194.8,1.09045]
[1758628623394,1.27801571,4194.9,4194.8,1.09045]
[1758628624001,1.70675571,4194.9,4194.8,1.09045]
[1758628624506,1.70675571,4194.9,4194.8,0.87785]
[1758628625604,1.27801571,4194.9,4194.8,0.87785]
[1758628626206,1.70696097,4194.9,4194.8,0.87785]
[1758628626997,1.27822097,4194.9,4194.8,0.87785]
[1758628627408,1.70696097,4194.9,4194.8,0.87785]
[1758628629704,1.70696097,4194.9,4194.8,0.66875]
[1758628630110,1.70696097,4194.9,4194.8,0.24]
[1758628630307,1.70696097,4194.9,4194.8,0.66875]
[1758628633011,1.70696097,4194.9,4194.8,0.24]
[1758628634505,1.70696097,4194.9,4194.8,0.66875]
[1758628635409,1.70696097,4194.9,4194.8,0.24]
[1758628635808,1.70696097,4194.9,4194.8,0.66875]
[1758628640015,1.70696097,4194.9,4194.8,0.87945]
[1758628640206,1.27822097,4194.9,4194.8,1.08995]
[1758628640510,1.70696097,4194.9,4194.8,1.08995]
[1758628640909,1.70696097,4194.9,4194.8,0.63945]
[1758628641114,1.70696097,4194.9,4194.8,0.87945]
[1758628666131,1.70696097,4194.9,4194.8,0.66875]
[1758628668942,1.27822097,4194.9,4194.8,0.88385]
[1758628669542,1.70696097,4194.9,4194.8,0.88385]
[1758628675438,1.27822097,4194.9,4194.8,0.88385]
[1758628675634,1.27822097,4194.9,4194.8,1.35395]
[1758628675941,0.5591,4195.5,4195.4,0.64379]
[1758628676139,0.345,4195.5,4195.4,1.35289]
[1758628676539,0.8678,4195.5,4195.4,1.35289]
[1758628677043,3.5165,4195.8,4195.7,1.11386]
[1758628678138,0.3087,4195.8,4195.7,1.11386]
[1758628680745,0.5286,4195.8,4195.7,1.11386]
[1758628687648,0.3087,4195.8,4195.7,1.11386]
[1758628688056,0.5286,4195.8,4195.7,1.11386]
[1758628690054,0.5286,4195.8,4195.7,1.35286]
[1758628694259,0.7427,4195.8,4195.7,0.88276]
[1758628694457,0.7427,4195.8,4195.7,0.42866]
[1758628694656,0.7427,4195.8,4195.7,0.66766]
[1758628699365,1.17135,4195.8,4195.7,0.66766]
[1758628700169,1.72624015,4195.8,4195.7,0.66766]
[1758628702376,1.72624015,4195.8,4195.7,0.42866]
[1758628702575,0.745,4195.4,4195.3,3.2078]
[1758628702875,0.745,4195.4,4195.3,4.322]
[1758628703069,0.745,4195.4,4195.3,4.5802]
[1758628704175,1.30075892,4195.4,4195.3,4.322]
[1758628704476,1.72944892,4195.4,4195.3,0.6677]
[1758628704975,1.72944892,4195.4,4195.3,0.8907]
[1758628706470,1.72944892,4195.4,4195.3,0.6517]
[1758628706668,1.72944892,4195.4,4195.3,0.6677]
[1758628708481,1.30075892,4195.4,4195.3,0.6677]
[1758628708680,1.30075892,4195.4,4195.3,0.8907]
[1758628708868,1.72944892,4195.4,4195.3,0.6517]
[1758628709072,1.72944892,4195.4,4195.3,0.8907]
[1758628709979,1.72944892,4195.4,4195.3,0.6677]
[1758628714185,1.30075892,4195.4,4195.3,0.6677]
[1758628714485,1.72944892,4195.4,4195.3,0.6677]
[1758628719680,0.4364,4195.1,4194.8,3.2078]
[1758628719988,0.55575892,4195.4,4194.8,3.2078]
[1758628719989,0.745,4194.9,4194.8,3.85955]
[1758628720180,1.30075892,4194.9,4194.8,4.09855]
[1758628721488,1.30075892,4194.9,4194.8,3.85955]
[1758628721691,1.30075892,4194.9,4194.8,4.09855]
[1758628724190,1.30075892,4194.9,4194.3,3.2078]
[1758628724389,0.7344,4194.6,4194.5,0.2107]
[1758628724592,1.29015892,4194.6,4194.5,0.85827]
[1758628725894,1.29015892,4194.6,4194.5,1.11557]
[1758628726885,1.29015892,4194.6,4194.5,0.85827]
[1758628727086,1.71892892,4194.6,4194.5,0.85827]
[1758628727482,1.71892892,4194.6,4194.4,0.42879]
[1758628727483,1.28588,4194.5,4194.4,0.42879]
[1758628727694,1.84163892,4194.5,4194.4,0.66779]
[1758628733400,1.41285892,4194.5,4194.4,0.66779]
[1758628734001,1.41285892,4194.5,4194.4,0.87849]
[1758628734694,1.84163892,4194.5,4194.4,0.87849]
[1758628737294,1.41285892,4194.5,4194.4,0.87849]
[1758628738505,1.84163892,4194.5,4194.4,0.87849]
[1758628739304,1.41285892,4194.5,4194.4,0.87849]
[1758628739496,1.41285892,4194.5,4194.4,0.66779]
[1758628739802,1.84163892,4194.5,4194.4,0.66779]
[1758628740303,1.84163892,4194.5,4194.4,0.87849]
[1758628741506,1.41285892,4194.5,4194.4,0.87849]
[1758628741803,0.86875892,4194.5,4194.4,1.35459]
[1758628742001,1.41285892,4194.5,4194.4,1.09729]
[1758628745308,1.84163892,4194.5,4194.4,0.6685]
[1758628745502,0.67845892,4194.5,4193.8,3.4651]
[1758628745709,1.71895892,4194.4,4193.9,0.23843]
[1758628745904,0.8571,4194.0,4193.9,0.2107]
[1758628746106,0.8571,4194.0,4193.9,0.4497]
[1758628746308,0.8571,4194.0,4193.9,0.87854]
[1758628748114,1.41307752,4194.0,4193.9,0.66784]
[1758628749503,1.84190752,4194.0,4193.9,0.66784]
[1758628749700,1.84190752,4194.0,4193.9,0.42884]
[1758628750011,1.16324,4193.9,4193.8,0.42885]
[1758628750313,1.71921752,4193.9,4193.8,0.66785]
[1758628751206,1.71921752,4193.9,4193.8,0.42885]
[1758628751403,1.71921752,4193.9,4193.8,0.66785]
[1758628752315,1.29037752,4193.9,4193.8,0.66785]
[1758628752608,1.71921752,4193.9,4193.8,0.66785]
[1758628758614,1.17737,4193.7,4193.6,0.42886]
[1758628758814,1.73334752,4193.7,4193.6,0.66786]
[1758628761915,1.73334752,4193.7,4193.6,0.42886]
[1758628762118,1.73334752,4193.7,4193.6,0.66786]
[1758628764129,1.73334752,4193.7,4193.6,0.42886]
[1758628764417,1.73334752,4193.7,4193.6,0.66786]
[1758628765215,1.30447752,4193.7,4193.6,0.66786]
[1758628765820,1.30447752,4193.7,4193.6,0.87966]
[1758628772424,1.30447752,4193.7,4193.6,1.10306]
[1758628778322,1.30447752,4193.7,4193.6,0.87966]
[1758628778921,0.85749439,4193.7,4193.6,0.87966]
[1758628779226,1.27869439,4193.7,4193.6,1.19726]
[1758628780827,1.27869439,4193.7,4193.6,1.42066]
[1758628782634,0.55597752,4193.7,4193.6,1.65911999]
[1758628782823,0.55597752,4193.7,4193.6,1.42066]
[1758628784425,1.08117752,4193.7,4193.6,1.42066]
[1758628784929,1.28377752,4193.7,4193.6,1.42066]
[1758628791036,0.7278,4193.7,4193.6,0.66786]
[1758628791938,0.7278,4193.7,4193.6,1.20716]
[1758628792237,0.7278,4193.7,4193.6,1.41916]
[1758628794136,0.5252,4193.7,4193.6,1.41916]
[1758628794333,0.2027,4193.7,4193.6,1.41916]
[1758628795539,0.5252,4193.9,4193.8,0.85925]
[1758628795728,0.5252,4193.9,4193.8,1.18015]
[1758628796242,0.7278,4193.9,4193.8,1.18015]
[1758628799743,1.15664,4193.9,4193.8,1.18015]
[1758628799944,1.15664,4193.9,4193.8,0.66785]
[1758628800240,0.2026,4193.7,4193.6,0.2184]
[1758628800437,0.7278,4193.7,4193.6,0.88627]
[1758628801041,0.7278,4193.7,4193.6,1.20717]
[1758628801342,0.7278,4193.7,4193.6,1.41917]
[1758628801547,0.7278,4193.7,4193.6,1.18017]
[1758628801840,0.7278,4193.7,4193.6,1.41917]
[1758628802545,0.7278,4193.7,4193.3,3.2078]
[1758628802546,1.15669,4193.4,4193.3,0.2184]
[1758628802740,0.7278,4193.2,4193.1,0.96822]
[1758628802932,1.27702817,4193.2,4193.1,1.20722]
[1758628803244,1.27702817,4193.2,4193.1,1.41922]
[1758628803741,0.54922817,4193.2,4193.1,1.18022]
[1758628803947,1.27702817,4193.2,4193.1,1.41922]
[1758628804247,1.27702817,4193.2,4193.1,1.20722]
[1758628805142,1.27702817,4193.2,4192.7,3.2078]
[1758628805143,0.4053,4192.9,4192.7,3.2078]
[1758628805340,1.27702817,4192.8,4192.7,0.96826]
[1758628805540,1.27702817,4192.8,4192.7,1.20726]
[1758628808646,1.70597817,4192.8,4192.7,1.20726]
[1758628810243,1.70597817,4192.8,4192.7,0.96826]
[1758628810546,1.70597817,4192.8,4192.7,1.20726]
[1758628811843,1.70597817,4192.8,4192.7,0.5393]
[1758628812046,1.70597817,4192.8,4192.7,0.239]
[1758628812744,1.70597817,4192.8,4192.7,1.20726]
[1758628812942,1.27702817,4192.8,4192.7,1.41926]
[1758628813545,1.27702817,4192.8,4192.7,1.18026]
[1758628813746,1.27702817,4192.8,4192.7,1.41926]
[1758628814050,1.70597817,4192.8,4192.7,1.41926]
[1758628814851,1.27702817,4192.8,4192.7,1.41926]
[1758628815047,0.75192817,4192.8,4192.7,1.41926]
[1758628815248,3.4223,4193.2,4193.1,0.85212]
[1758628815552,4.29798821,4193.2,4193.1,1.15712]
[1758628815954,4.51648821,4193.2,4193.1,1.39612]
[1758628816251,4.29798821,4193.2,4193.1,1.39612]
[1758628816443,0.3698,4194.0,4193.1,1.39612]
[1758628816444,0.5107,4193.8,4193.7,0.42886]
[1758628816642,0.5107,4193.8,4193.7,1.15836]
[1758628816854,1.05837929,4193.8,4193.7,1.15836]
[1758628817449,1.27487929,4193.8,4193.7,1.15836]
[1758628820559,1.27487929,4193.8,4193.7,0.42886]
[1758628821557,1.27487929,4193.8,4193.7,0.94566]
[1758628821950,1.27487929,4193.8,4193.7,1.15836]
[1758628825374,1.27487929,4193.8,4193.7,0.63626]
[1758628825864,1.27487929,4193.8,4193.7,0.94566]
[1758628826564,1.27487929,4193.8,4193.7,0.42886]
[1758628826771,1.70372929,4193.8,4193.7,0.42886]
[1758628826970,1.27487929,4193.8,4193.7,0.42886]
[1758628827269,1.27487929,4193.8,4193.7,0.73826]
[1758628827671,1.70372929,4193.8,4193.7,0.42886]
[1758628827868,0.86649,4193.5,4193.4,0.42889]
[1758628828072,1.1561,4193.4,4193.3,0.239]
[1758628828265,1.1561,4193.4,4193.2,0.66791]
[1758628828266,0.3051,4193.3,4193.2,0.66791]
[1758628828472,1.70377929,4193.3,4193.2,0.66791]
[1758628828970,1.27487929,4193.3,4193.2,1.18471]
[1758628829370,1.27487929,4193.3,4193.2,1.39741]
[1758628830869,0.2056,4193.3,4193.2,1.39741]
[1758628831072,3.84227,4193.7,4193.6,0.2074]
[1758628831273,4.60619879,4193.7,4193.6,0.2074]
[1758628831473,4.60619879,4193.7,4193.6,0.5168]
[1758628831663,4.91129879,4193.7,4193.6,0.94567]
[1758628831869,1.15607,4193.6,4193.5,0.73828]
[1758628832069,1.70349879,4193.6,4193.5,0.42888]
[1758628832668,1.70349879,4193.6,4193.2,1.62068]
[1758628832669,0.4221,4193.3,4193.2,0.4464]
[1758628832874,1.27462879,4193.3,4193.2,0.7558]
[1758628833278,1.27462879,4193.3,4193.2,1.18471]
[1758628833769,1.70352879,4193.3,4193.2,0.239]
[1758628833970,1.70352879,4193.3,4193.2,0.66791]
[1758628834376,0.75302879,4193.3,4193.2,1.39741]
[1758628834573,0.75302879,4193.3,4193.2,0.239]
[1758628834781,0.96952879,4193.3,4193.2,0.66791]
[1758628835374,0.5107,4193.3,4193.2,0.66791]
[1758628835580,0.1325,4193.5,4193.4,0.42889]
[1758628836083,0.4376,4193.5,4193.4,0.42889]
[1758628836583,0.6432,4193.5,4193.4,0.42889]
[1758628839886,0.8597,4193.5,4193.4,0.42889]
[1758628840582,1.28858,4193.5,4192.9,3.2078]
[1758628840880,0.7272,4192.8,4192.7,0.42896]
[1758628841084,0.7272,4192.8,4192.7,0.66796]
[1758628841880,0.3051,4192.8,4192.7,4.90647]
[1758628842786,0.3051,4192.8,4192.7,4.66796]
[1758628843482,0.5107,4192.8,4192.7,4.66796]
[1758628843787,0.3051,4192.8,4192.7,4.66796]
[1758628847786,0.7253,4192.8,4192.7,0.42896]
[1758628847993,0.7253,4192.8,4192.7,0.66796]
[1758628855896,0.7253,4192.8,4192.7,0.42896]
[1758628856096,0.7253,4192.8,4192.7,0.66796]
[1758628858902,0.7253,4192.8,4192.7,0.42896]
[1758628859103,0.7253,4192.8,4192.7,0.66796]
[1758628862105,0.3051,4192.8,4192.7,0.66796]
[1758628862302,0.1325,4193.5,4192.7,0.66796]
[1758628862303,0.1325,4193.5,4193.1,1.0723]
[1758628862602,0.54841412,4193.4,4193.2,0.239]
[1758628862804,0.3388,4193.5,4193.4,0.42889]
[1758628863004,0.5527,4193.5,4193.4,0.42889]
[1758628863303,1.10110904,4193.5,4193.4,0.42889]
[1758628863701,0.88720904,4193.5,4193.4,0.42889]
[1758628864409,1.19060904,4193.5,4193.4,0.42889]
[1758628864810,1.40450904,4193.5,4193.4,0.42889]
[1758628867005,0.1305,4193.0,4192.8,1.07239]
[1758628867212,0.1305,4193.0,4192.7,0.42896]
[1758628867213,0.7236,4192.8,4192.7,0.42896]
[1758628867412,0.7236,4192.8,4192.7,0.66796]
[1758628870015,0.7236,4192.8,4192.7,0.42896]
[1758628870212,0.7236,4192.8,4192.7,0.66796]
[1758628871521,0.7236,4192.8,4192.7,0.42896]
[1758628871709,0.7236,4192.8,4192.7,0.66796]
[1758628872416,1.70144012,4192.8,4192.7,0.42896]
[1758628874219,0.1307,4192.5,4192.4,0.239]
[1758628874415,4.1091,4192.5,4192.4,0.239]
[1758628875526,4.1091,4192.5,4192.4,0.66799]
[1758628876410,4.65777129,4192.5,4192.4,0.66799]
[1758628877319,5.08675129,4192.5,4192.4,0.42899]
[1758628877814,0.7351,4191.7,4191.4,4.28055]
[1758628878018,0.3438,4191.5,4191.4,3.8759]
[1758628878210,0.6497,4191.5,4191.4,3.8759]
[1758628878411,0.4377,4191.5,4191.4,3.8759]
[1758628880920,0.3059,4191.5,4191.4,3.8759]
[1758628881222,0.6497,4192.0,4191.9,0.42905]
[1758628881418,0.6497,4192.0,4191.9,0.66805]
[1758628882914,0.4377,4192.0,4191.9,0.66805]
[1758628883120,0.6497,4192.0,4191.9,0.66805]
[1758628883921,0.4377,4192.0,4191.9,0.66805]
[1758628888019,0.4377,4192.0,4191.9,3.87585]
[1758628888812,3.3385,4192.5,4192.4,0.42899]